fUSD/lending_fUSD_20240331
["ID","MTS","AMOUNT","RATE_DAILY","PERIOD"]
[321168398,1711925452667,-500.0,0.00055342,120]
[321168399,1711925452677,-500.0,0.00055342,120]
[321168400,1711925452687,-500.0,0.00055342,120]
[321168401,1711925452696,-500.0,0.00055342,120]
[321168402,1711925452707,-500.0,0.00055342,120]
[321168403,1711925452716,-500.0,0.00055342,120]
[321168404,1711925452725,-809.76,0.00055342,120]
[321168405,1711925452735,-684.22,0.00055342,120]
[321168406,1711925452745,-500.0,0.00055342,120]
[321168407,1711925452755,-500.0,0.00055342,120]
[321168408,1711925452764,-500.0,0.00055342,120]
[321168409,1711925452773,-750.18,0.00055342,120]
[321168410,1711925452783,-500.0,0.00055342,120]
[321168411,1711925452792,-500.0,0.00055342,120]
[321168412,1711925452801,-719.43,0.00055342,120]
[321168413,1711925452810,-567.56,0.00055342,120]
[321168414,1711925452820,-500.0,0.00055342,120]
[321168415,1711925452830,-500.0,0.00055342,120]
[321168416,1711925452840,-500.0,0.00055342,120]
[321168417,1711925452849,-500.0,0.00055342,120]
[321168418,1711925452858,-500.0,0.00055342,120]
[321168419,1711925452867,-500.0,0.00055342,120]
[321168420,1711925452877,-500.0,0.00055342,120]
[321168421,1711925452886,-500.0,0.00055342,120]
[321168422,1711925452895,-500.0,0.00055342,120]
[321168423,1711925452904,-500.0,0.00055342,120]
[321168424,1711925452914,-1113.41,0.00055342,120]
[321168425,1711925452924,-741.66,0.00055342,120]
[321168426,1711925452933,-500.0,0.00055342,120]
[321168427,1711925452942,-500.0,0.00055342,120]
[321168428,1711925452952,-500.0,0.00055342,120]
[321168429,1711925452962,-784.46,0.00055342,120]
[321168430,1711925452971,-500.0,0.00055342,120]
[321168431,1711925452981,-1928.46,0.00055342,120]
[321168432,1711925452990,-1621.99,0.00055342,120]
[321168433,1711925452999,-500.0,0.00055342,120]
[321168434,1711925453010,-1077.99,0.00055342,120]
[321168435,1711925453021,-500.0,0.00055342,120]
[321168436,1711925453030,-500.0,0.00055342,120]
[321168437,1711925453040,-500.0,0.00055342,120]
[321168438,1711925453050,-500.0,0.00055342,120]
[321168439,1711925453059,-500.0,0.00055342,120]
[321168440,1711925453069,-500.0,0.00055342,120]
[321168441,1711925453078,-500.0,0.00055342,120]
[321168442,1711925453089,-500.0,0.00055342,120]
[321168443,1711925453098,-500.0,0.00055342,120]
[321168444,1711925453107,-500.0,0.00055342,120]
[321168445,1711925453117,-500.0,0.00055342,120]
[321168446,1711925453126,-500.0,0.00055342,21]
[321168447,1711925453136,-500.0,0.00055342,120]
[321168448,1711925453146,-500.0,0.00055342,120]
[321168449,1711925453156,-500.0,0.00055342,120]
[321168450,1711925453166,-1261.73,0.00055342,120]
[321168451,1711925453175,-941.12,0.00055342,120]
[321168452,1711925453184,-500.0,0.00055342,120]
[321168453,1711925453194,-500.0,0.00055342,120]
[321168454,1711925453203,-845.57,0.00055342,120]
[321168455,1711925453213,-603.82,0.00055342,120]
[321168456,1711925453223,-500.0,0.00055342,120]
[321168457,1711925453233,-500.0,0.00055342,120]
[321168458,1711925453242,-500.0,0.00055342,120]
[321168459,1711925453252,-500.0,0.00055342,120]
[321168460,1711925453262,-500.0,0.00055342,120]
[321168461,1711925453271,-2129.16,0.00055342,120]
[321168462,1711925453281,-500.0,0.00055342,120]
[321168463,1711925453290,-500.0,0.00055342,120]
[321168464,1711925453299,-500.0,0.00055342,120]
[321168465,1711925453309,-500.0,0.00055342,120]
[321168466,1711925453318,-500.0,0.00055342,120]
[321168467,1711925453338,-452.59,0.00055342,120]
[321168468,1711925453349,-500.0,0.00055342,120]
[321168469,1711925453358,-401.19,0.00055342,120]
[321168470,1711925453368,-410.00966679,0.00055342,120]
[321168471,1711925453979,-89.99033321,0.00055342,120]
[321168472,1711925453990,-500.0,0.00055342,120]
[321168473,1711925454000,-500.0,0.00055342,120]
[321168474,1711925454011,-500.0,0.00055342,120]
[321168475,1711925454022,-837.4,0.00055342,120]
[321168476,1711925454031,-500.0,0.00055342,120]
[321168477,1711925454042,-500.0,0.00055342,120]
[321168478,1711925454052,-500.0,0.00055342,120]
[321168479,1711925454061,-500.0,0.00055342,120]
[321168480,1711925454071,-680.379,0.00055379,120]
[321168481,1711925454080,-458.0,0.00055379,120]
[321168482,1711925454090,-1226.0,0.00055379,120]
[321168483,1711925454099,-587.85,0.00055379,120]
[321168484,1711925454109,-536.688,0.00055379,120]
[321168485,1711925454118,-2985.0,0.00055379,120]
[321168486,1711925454128,-396.0,0.00055379,120]
[321168487,1711925454138,-1461.0,0.00055379,120]
[321168488,1711925454147,-1139.0,0.00055379,120]
[321168489,1711925454156,-150.0,0.00055379,120]
[321168490,1711925454166,-1629.0,0.00055379,120]
[321168491,1711925454175,-2427.0,0.00055379,120]
[321168492,1711925454185,-150.0,0.00055379,120]
[321168493,1711925454195,-213.0,0.00055379,2]
[321168494,1711925454205,-150.0,0.00055379,120]
[321168495,1711925454215,-150.757,0.00055379,120]
[321168496,1711925454224,-1178.0,0.00055379,120]
[321168497,1711925454234,-1385.971,0.00055379,120]
[321168498,1711925454244,-150.0,0.00055379,2]
[321168499,1711925454253,-393.643,0.00055379,120]
[321168500,1711925454263,-150.0,0.00055379,2]
[321168501,1711925454272,-41.6596768,0.00055379,120]
[321168502,1711925454284,-108.7403232,0.00055379,120]
[321168503,1711925454294,-500.0,0.00055615,2]
[321168504,1711925454303,-482.15000545,0.00055616,120]
[321168505,1711925454312,-61.9044487,0.00055616,120]
[321168506,1711925454528,430.95180943,0.0002112,2]
[321168507,1711925469412,167.9279156,0.0002112,2]
[321168508,1711925469957,2223021.34508608,0.00025,2]
[321168511,1711925669357,500.0,0.00042653,120]
[321168545,1711926633091,-3150.28064587,0.00037694,4]
[321168546,1711926633101,-713.07476541,0.00037695,4]
[321168547,1711926633113,-1401.31047226,0.00037696,4]
[321168548,1711926633124,-159.75132025,0.00037708,2]
[321168549,1711926633136,-159.08,0.00037808,2]
[321168550,1711926633146,-154.86,0.00037808,2]
[321168551,1711926633157,-150.0,0.00038999,4]
[321168552,1711926633166,-59.08356547,0.00039,2]
[321168553,1711926633187,-519.76479415,0.00039,2]
[321168554,1711926633206,-5665.48134558,0.00039,2]
[321168555,1711926633217,-159.75132017,0.0003993,2]
[321168556,1711926633228,-317.5868972,0.00042,2]
[321168557,1711926633240,-159.75132017,0.00042152,2]
[321168558,1711926633250,-800.0,0.00042603,2]
[321168559,1711926633260,-763.94517598,0.00042627,4]
[321168560,1711926633270,-379.1,0.00042628,2]
[321168561,1711926633279,-38717.01717003,0.00042628,2]
[321168562,1711926633289,-3883.70900597,0.00042628,2]
[321168563,1711926633298,-150.16828854,0.00042628,2]
[321168564,1711926633310,-511.67336748,0.00042628,2]
[321168565,1711926633322,-5322.33502877,0.00042628,2]
[321168566,1711926633332,-403.19234829,0.00042628,2]
[321168567,1711926633343,-300.000001,0.00042628,2]
[321168568,1711926633353,-499.999999,0.00042628,2]
[321168569,1711926633363,-421.15070643,0.00042628,2]
[321168570,1711926633373,-22425.18158942,0.00042628,2]
[321168571,1711926633386,-1070.75849495,0.00042628,14]
[321168572,1711926633396,-316.43398412,0.00042628,2]
[321168573,1711926633407,-21770.00279156,0.00042628,2]
[321168574,1711926633417,-407.0,0.00042628,2]
[321168575,1711926633428,-777.54370737,0.00042651,2]
[321168576,1711926633438,-400.0,0.00042651,2]
[321168577,1711926633449,-155.52093473,0.00042651,2]
[321168578,1711926633459,-406.77867836,0.00042651,2]
[321168579,1711926633470,-8880.27790729,0.00042651,4]
[321168580,1711926633480,-1277.65210138,0.00042651,2]
[321168581,1711926633491,-209.46051321,0.00042651,4]
[321168582,1711926633502,-2201.66353845,0.00042651,4]
[321168583,1711926633512,-2444.82409148,0.00042652,2]
[321168584,1711926633522,-359.48685988,0.00042653,2]
[321168585,1711926633533,-2451.72992449,0.00042653,4]
[321168586,1711926633543,-346.73112929,0.00042653,4]
[321168587,1711926633554,-495.17,0.00043741,2]
[321168588,1711926633565,-159.75132017,0.00044375,2]
[321168589,1711926633575,-190.69,0.00045628,2]
[321168590,1711926633585,-181.81,0.00045686,15]
[321168591,1711926633596,-495.17,0.00046005,2]
[321168592,1711926633607,-250.0,0.00046226,2]
[321168593,1711926633618,-158.83,0.00046504,2]
[321168594,1711926633629,-159.75132017,0.00046597,2]
[321168595,1711926633641,-21667.48,0.00046764,2]
[321168596,1711926633651,-158.83,0.00046806,2]
[321168597,1711926633662,-500.0,0.00047018,2]
[321168598,1711926633674,-384.5,0.00047037,120]
[321168599,1711926633684,-158.83,0.00047109,2]
[321168600,1711926633695,-158.83,0.00047412,2]
[321168601,1711926633706,-150.17,0.00047547,2]
[321168602,1711926633718,-158.83,0.00047715,2]
[321168603,1711926633729,-179.0,0.00047765,2]
[321168604,1711926633739,-158.83,0.00048018,2]
[321168605,1711926633748,-495.17,0.00048269,2]
[321168606,1711926633758,-158.83,0.00048321,2]
[321168607,1711926633767,-190.69,0.00048368,2]
[321168608,1711926633777,-181.81,0.00048426,15]
[321168609,1711926633787,-158.83,0.00048624,2]
[321168610,1711926633796,-268.26,0.00048669,2]
[321168611,1711926633806,-16746.58190797,0.000487,2]
[321168612,1711926633816,-5525.91477168,0.00048719,2]
[321168613,1711926633826,-14132.9048418,0.00048816,2]
[321168614,1711926633837,-159.75132017,0.00048819,2]
[321168615,1711926633847,-154.86,0.00048828,2]
[321168616,1711926633857,-307.2,0.00048916,2]
[321168617,1711926633868,-158.83,0.00048927,2]
[321168618,1711926633877,-584.76,0.00048979,2]
[321168619,1711926633889,-584.76,0.00048991,2]
[321168620,1711926633899,-584.76,0.00049004,2]
[321168621,1711926633909,-584.76,0.00049017,2]
[321168622,1711926633919,-150.02,0.0004902,2]
[321168623,1711926633930,-584.76,0.0004903,2]
[321168624,1711926633942,-584.76,0.00049043,2]
[321168625,1711926633951,-584.76,0.00049056,2]
[321168626,1711926633962,-584.76,0.00049069,2]
[321168627,1711926633977,-584.76,0.00049082,2]
[321168628,1711926633987,-584.76,0.00049094,2]
[321168629,1711926633996,-584.76,0.00049107,2]
[321168630,1711926634006,-584.76,0.0004912,2]
[321168631,1711926634018,-584.76,0.00049133,2]
[321168632,1711926634029,-584.76,0.00049146,2]
[321168633,1711926634039,-584.76,0.00049159,2]
[321168634,1711926634050,-584.76,0.00049172,2]
[321168635,1711926634060,-584.76,0.00049185,2]
[321168636,1711926634070,-584.76,0.00049197,2]
[321168637,1711926634080,-584.76,0.0004921,2]
[321168638,1711926634090,-584.76,0.00049223,2]
[321168639,1711926634100,-1000.0,0.000495,2]
[321168640,1711926634110,-1000.0,0.0005,2]
[321168641,1711926634122,-272.58933806,0.0005,4]
[321168642,1711926634133,-1000.0,0.000501,2]
[321168643,1711926634143,-754.21,0.00050287,120]
[321168644,1711926634153,-1000.0,0.000505,2]
[321168645,1711926634162,-170.87,0.00050533,2]
[321168646,1711926634172,-495.17,0.00050533,2]
[321168647,1711926634181,-5525.91477163,0.00050695,2]
[321168648,1711926634191,-1138.0,0.000507,2]
[321168649,1711926634202,-14132.90484172,0.00050781,2]
[321168650,1711926634212,-1000.0,0.00051,2]
[321168651,1711926634222,-159.75132017,0.00051041,2]
[321168652,1711926634232,-190.69,0.00051108,2]
[321168653,1711926634242,-181.81,0.00051166,120]
[321168654,1711926634253,-692.8,0.00051377,120]
[321168655,1711926634263,-1000.0,0.000515,2]
[321168656,1711926634273,-1000.0,0.00052,2]
[321168657,1711926634283,-1000.0,0.000525,2]
[321168658,1711926634293,-5525.91477163,0.0005267,2]
[321168659,1711926634302,-373.84,0.00052736,2]
[321168660,1711926634312,-14132.90484172,0.00052746,2]
[321168661,1711926634322,-495.17,0.00052797,2]
[321168662,1711926634332,-1000.0,0.00053,2]
[321168663,1711926634342,-159.75132017,0.00053264,2]
[321168664,1711926634351,-487.39,0.00053411,30]
[321168665,1711926634361,-180.0,0.00053505,120]
[321168666,1711926634371,-181.81,0.00053905,120]
[321168667,1711926634381,-167.68,0.00053929,2]
[321168668,1711926634393,-2000.0,0.00054,30]
[321168669,1711926634403,-163.00073204,0.00054494,14]
[321168670,1711926634413,-3749.999999,0.000545,120]
[321168671,1711926634423,-2000.0,0.000545,30]
[321168672,1711926634432,-1001.4464,0.00054593,30]
[321168673,1711926634442,-64527.62388445,0.00054594,2]
[321168674,1711926634460,-35472.37611555,0.00054594,2]
[321168675,1711926634469,-41232.2525,0.00054594,2]
[321168676,1711926634479,-11175.6128,0.00054594,2]
[321168677,1711926634489,-317.79321874,0.00054611,2]
[321168678,1711926634499,-5525.91477163,0.00054646,2]
[321168679,1711926634509,-373.84,0.00054683,2]
[321168680,1711926634518,-1000.0,0.00054692,30]
[321168681,1711926634527,-29284.6003,0.00054693,2]
[321168682,1711926634537,-14132.90484172,0.00054711,2]
[321168683,1711926634546,-1634.12,0.00054784,30]
[321168684,1711926634556,-270.02090404,0.00054792,4]
[321168685,1711926634566,-2186.21313849,0.00054793,4]
[321168686,1711926634576,-12543.9947854,0.00054793,4]
[321168687,1711926634585,-517.69766086,0.00054794,120]
[321168688,1711926634595,-319.78443847,0.00054794,2]
[321168689,1711926634605,-501.36902337,0.00054794,60]
[321168690,1711926634615,-502.49806445,0.00054794,120]
[321168691,1711926634625,-503.9652765,0.00054794,120]
[321168692,1711926634636,-518.08532734,0.00054794,120]
[321168693,1711926634646,-508.4752927,0.00054794,120]
[321168694,1711926634656,-246.60292308,0.00054794,120]
[321168695,1711926634666,-503.32639609,0.00054794,120]
[321168696,1711926634675,-500.89791331,0.00054794,120]
[321168697,1711926634686,-500.0,0.00054794,120]
[321168698,1711926634696,-501.67458611,0.00054794,120]
[321168699,1711926634706,-500.89631606,0.00054794,120]
[321168700,1711926634715,-503.57094918,0.00054794,120]
[321168701,1711926634725,-508.69013579,0.00054794,120]
[321168702,1711926634734,-519.49288858,0.00054794,120]
[321168703,1711926634744,-500.0,0.00054794,2]
[321168704,1711926634753,-502.44754781,0.00054794,120]
[321168705,1711926634763,-506.21538329,0.00054794,120]
[321168706,1711926634772,-502.96134594,0.00054794,120]
[321168707,1711926634782,-500.0,0.00054794,2]
[321168708,1711926634791,-510.72273075,0.00054794,120]
[321168709,1711926634802,-155.0,0.00054794,120]
[321168710,1711926634811,-500.0,0.00054794,120]
[321168711,1711926634822,-500.0,0.00054794,120]
[321168712,1711926634833,-500.0,0.00054794,120]
[321168713,1711926634843,-268.8755513,0.00054794,120]
[321168714,1711926634852,-500.0,0.00054794,120]
[321168715,1711926634862,-500.0,0.00054794,2]
[321168716,1711926634871,-500.0,0.00054794,2]
[321168717,1711926634881,-500.0,0.00054794,120]
[321168718,1711926634893,-533.73881074,0.00054794,4]
[321168719,1711926634903,-500.0,0.00054794,120]
[321168720,1711926634913,-500.0,0.00054794,120]
[321168721,1711926634922,-500.0,0.00054794,120]
[321168722,1711926634931,-500.0,0.00054794,120]
[321168723,1711926634941,-500.0,0.00054794,120]
[321168724,1711926634951,-708.54,0.00054794,120]
[321168725,1711926634962,-608.72,0.00054794,120]
[321168726,1711926634974,-500.0,0.00054794,120]
[321168727,1711926634984,-500.0,0.00054794,120]
[321168728,1711926634994,-500.0,0.00054794,120]
[321168729,1711926635003,-656.41,0.00054794,120]
[321168730,1711926635014,-500.0,0.00054794,120]
[321168731,1711926635024,-500.0,0.00054794,120]
[321168732,1711926635034,-629.5,0.00054794,120]
[321168733,1711926635045,-500.0,0.00054794,120]
[321168734,1711926635057,-500.0,0.00054794,120]
[321168735,1711926635066,-500.0,0.00054794,120]
[321168736,1711926635076,-500.0,0.00054794,120]
[321168737,1711926635086,-500.0,0.00054794,120]
[321168738,1711926635096,-974.24,0.00054794,120]
[321168739,1711926635105,-500.0,0.00054794,120]
[321168740,1711926635115,-500.0,0.00054794,120]
[321168741,1711926635125,-1687.4,0.00054794,120]
[321168742,1711926635135,-500.0,0.00054794,120]
[321168743,1711926635145,-500.0,0.00054794,120]
[321168744,1711926635154,-500.0,0.00054794,120]
[321168745,1711926635164,-648.95,0.00054794,120]
[321168746,1711926635174,-500.0,0.00054794,120]
[321168747,1711926635184,-500.0,0.00054794,120]
[321168748,1711926635193,-500.0,0.00054794,120]
[321168749,1711926635204,-500.0,0.00054794,120]
[321168750,1711926635214,-500.0,0.00054794,120]
[321168751,1711926635223,-500.0,0.00054794,120]
[321168752,1711926635234,-500.0,0.00054794,120]
[321168753,1711926635514,-500.0,0.00054794,120]
[321168754,1711926635523,-500.0,0.00054794,120]
[321168755,1711926635532,-500.0,0.00054794,120]
[321168756,1711926635542,-686.4,0.00054794,120]
[321168757,1711926635551,-500.0,0.00054794,120]
[321168758,1711926635560,-1104.01,0.00054794,120]
[321168759,1711926635570,-500.0,0.00054794,120]
[321168760,1711926635580,-500.0,0.00054794,120]
[321168761,1711926635589,-1419.24,0.00054794,120]
[321168762,1711926635599,-500.0,0.00054794,120]
[321168763,1711926635608,-500.0,0.00054794,120]
[321168764,1711926635617,-500.0,0.00054794,120]
[321168765,1711926635626,-500.0,0.00054794,120]
[321168766,1711926635636,-739.87,0.00054794,120]
[321168767,1711926635645,-500.0,0.00054794,120]
[321168768,1711926635655,-943.24,0.00054794,120]
[321168769,1711926635663,-500.0,0.00054794,120]
[321168770,1711926635673,-500.0,0.00054794,120]
[321168771,1711926635682,-500.0,0.00054794,120]
[321168772,1711926635692,-500.0,0.00054794,120]
[321168773,1711926635702,-500.0,0.00054794,120]
[321168774,1711926635711,-500.0,0.00054794,21]
[321168775,1711926635720,-500.0,0.00054794,120]
[321168776,1711926635729,-500.0,0.00054794,120]
[321168777,1711926635738,-500.0,0.00054794,120]
[321168778,1711926635747,-500.0,0.00054794,120]
[321168779,1711926635756,-500.0,0.00054794,120]
[321168780,1711926635765,-500.0,0.00054794,120]
[321168781,1711926635774,-823.48,0.00054794,120]
[321168782,1711926635783,-528.34,0.00054794,120]
[321168783,1711926635792,-500.0,0.00054794,120]
[321168784,1711926635802,-500.0,0.00054794,120]
[321168785,1711926635811,-732.72,0.00054794,120]
[321168786,1711926635820,-1863.01,0.00054794,120]
[321168787,1711926635830,-500.0,0.00054794,120]
[321168788,1711926635839,-500.0,0.00054794,120]
[321168789,1711926635848,-518.74,0.00054794,120]
[321168790,1711926635857,-500.0,0.00054794,120]
[321168791,1711926635866,-500.0,0.00054794,120]
[321168792,1711926635876,-200.74,0.00054794,120]
[321168793,1711926635886,-500.0,0.00054794,120]
[321168794,1711926635894,-500.0,0.00054794,120]
[321168795,1711926635904,-500.0,0.00054794,120]
[321168796,1711926635913,-500.0,0.00054794,120]
[321168797,1711926635922,-500.0,0.00054794,120]
[321168798,1711926635932,-500.0,0.00054794,120]
[321168799,1711926635941,-500.0,0.00054794,120]
[321168800,1711926635950,-500.0,0.00054794,120]
[321168801,1711926635960,-500.0,0.00054794,120]
[321168802,1711926635970,-500.0,0.00054794,120]
[321168803,1711926635981,-500.0,0.00054794,120]
[321168804,1711926635991,-992.98,0.00054794,120]
[321168805,1711926636000,-500.0,0.00054794,120]
[321168806,1711926636010,-500.0,0.00054794,120]
[321168807,1711926636019,-500.0,0.00054794,120]
[321168808,1711926636029,-1500.0,0.00055,30]
[321168809,1711926636039,-307.2,0.0005503,120]
[321168810,1711926636050,-434.45788899,0.00055057,2]
[321168811,1711926636059,-153.25,0.00055058,120]
[321168812,1711926636068,-495.17,0.00055061,2]
[321168813,1711926636077,-500.0,0.00055068,120]
[321168814,1711926636086,-500.0,0.00055068,120]
[321168815,1711926636095,-500.0,0.00055068,120]
[321168816,1711926636104,-568.79968626,0.00055068,120]
[321168817,1711926636113,-500.0,0.00055068,120]
[321168818,1711926636122,-500.0,0.00055068,120]
[321168819,1711926636132,-500.0,0.00055068,120]
[321168820,1711926636142,-500.0,0.00055068,120]
[321168821,1711926636151,-708.54,0.00055068,120]
[321168822,1711926636161,-608.72,0.00055068,120]
[321168823,1711926636170,-500.0,0.00055068,120]
[321168824,1711926636179,-500.0,0.00055068,120]
[321168825,1711926636188,-500.0,0.00055068,120]
[321168826,1711926636198,-656.41,0.00055068,120]
[321168827,1711926636207,-500.0,0.00055068,120]
[321168828,1711926636216,-500.0,0.00055068,120]
[321168829,1711926636225,-629.5,0.00055068,120]
[321168830,1711926636233,-500.0,0.00055068,120]
[321168831,1711926636243,-500.0,0.00055068,120]
[321168832,1711926636252,-500.0,0.00055068,120]
[321168833,1711926636262,-500.0,0.00055068,120]
[321168834,1711926636271,-500.0,0.00055068,120]
[321168835,1711926636280,-974.24,0.00055068,120]
[321168836,1711926636289,-500.0,0.00055068,120]
[321168837,1711926636298,-500.0,0.00055068,120]
[321168838,1711926636307,-1687.4,0.00055068,120]
[321168839,1711926636316,-500.0,0.00055068,120]
[321168840,1711926636326,-500.0,0.00055068,120]
[321168841,1711926636335,-500.0,0.00055068,120]
[321168842,1711926636344,-648.95,0.00055068,120]
[321168843,1711926636354,-500.0,0.00055068,120]
[321168844,1711926636363,-500.0,0.00055068,120]
[321168845,1711926636372,-500.0,0.00055068,120]
[321168846,1711926636381,-500.0,0.00055068,120]
[321168847,1711926636390,-500.0,0.00055068,120]
[321168848,1711926636399,-500.0,0.00055068,120]
[321168849,1711926636408,-500.0,0.00055068,120]
[321168850,1711926636417,-500.0,0.00055068,120]
[321168851,1711926636426,-500.0,0.00055068,120]
[321168852,1711926636436,-500.0,0.00055068,120]
[321168853,1711926636445,-686.4,0.00055068,120]
[321168854,1711926636454,-500.0,0.00055068,120]
[321168855,1711926636464,-1104.01,0.00055068,120]
[321168856,1711926636473,-500.0,0.00055068,120]
[321168857,1711926636482,-500.0,0.00055068,120]
[321168858,1711926636491,-1419.24,0.00055068,120]
[321168859,1711926636501,-500.0,0.00055068,120]
[321168860,1711926636510,-500.0,0.00055068,120]
[321168861,1711926636520,-500.0,0.00055068,120]
[321168862,1711926636529,-500.0,0.00055068,120]
[321168863,1711926636539,-739.87,0.00055068,120]
[321168864,1711926636548,-500.0,0.00055068,120]
[321168865,1711926636558,-943.24,0.00055068,120]
[321168866,1711926636567,-500.0,0.00055068,120]
[321168867,1711926636576,-500.0,0.00055068,120]
[321168868,1711926636586,-500.0,0.00055068,120]
[321168869,1711926636595,-243.46115701,0.00055068,120]
[321168870,1711926636604,-500.0,0.00055068,120]
[321168871,1711926636614,-500.0,0.00055068,21]
[321168872,1711926636623,-500.0,0.00055068,120]
[321168873,1711926636632,-500.0,0.00055068,120]
[321168874,1711926636642,-500.0,0.00055068,120]
[321168875,1711926636651,-500.0,0.00055068,120]
[321168876,1711926636661,-500.0,0.00055068,120]
[321168877,1711926636670,-500.0,0.00055068,120]
[321168878,1711926636679,-823.48,0.00055068,120]
[321168879,1711926636688,-528.34,0.00055068,120]
[321168880,1711926636697,-500.0,0.00055068,120]
[321168881,1711926636706,-500.0,0.00055068,120]
[321168882,1711926636715,-732.72,0.00055068,120]
[321168883,1711926636724,-1863.01,0.00055068,120]
[321168884,1711926636733,-500.0,0.00055068,120]
[321168885,1711926636742,-500.0,0.00055068,120]
[321168886,1711926636753,-500.0,0.00055068,120]
[321168887,1711926636762,-500.0,0.00055068,120]
[321168888,1711926636771,-500.0,0.00055068,120]
[321168889,1711926636780,-500.0,0.00055068,120]
[321168890,1711926636789,-595.19,0.00055068,120]
[321168891,1711926636798,-291.24046525,0.00055068,120]
[321168892,1711926636807,-500.0,0.00055068,120]
[321168893,1711926636816,-500.0,0.00055068,120]
[321168894,1711926636826,-500.0,0.00055068,120]
[321168895,1711926636835,-500.0,0.00055068,120]
[321168896,1711926636844,-500.0,0.00055068,120]
[321168897,1711926636853,-500.0,0.00055068,120]
[321168898,1711926636862,-500.0,0.00055068,120]
[321168899,1711926636870,-992.98,0.00055068,120]
[321168900,1711926636879,-500.0,0.00055068,120]
[321168901,1711926636888,-500.0,0.00055068,120]
[321168902,1711926636898,-212.0,0.00055242,2]
[321168903,1711926636909,-373.84,0.00055332,30]
[321168904,1711926636918,-1634.12,0.00055332,30]
[321168905,1711926636927,-500.0,0.00055342,120]
[321168906,1711926636936,-500.0,0.00055342,120]
[321168907,1711926636945,-500.0,0.00055342,120]
[321168908,1711926636954,-500.0,0.00055342,120]
[321168909,1711926636964,-500.0,0.00055342,120]
[321168910,1711926636977,-500.0,0.00055342,120]
[321168911,1711926636987,-500.0,0.00055342,120]
[321168912,1711926636998,-708.54,0.00055342,120]
[321168913,1711926637007,-608.72,0.00055342,120]
[321168914,1711926637017,-500.0,0.00055342,120]
[321168915,1711926637026,-500.0,0.00055342,120]
[321168916,1711926637035,-500.0,0.00055342,120]
[321168917,1711926637045,-656.41,0.00055342,120]
[321168918,1711926637055,-500.0,0.00055342,120]
[321168919,1711926637065,-500.0,0.00055342,120]
[321168920,1711926637074,-629.5,0.00055342,120]
[321168921,1711926637083,-500.0,0.00055342,120]
[321168922,1711926637092,-166.99121188,0.00055342,120]
[321168923,1711926637100,-500.0,0.00055342,120]
[321168924,1711926637109,-500.0,0.00055342,120]
[321168925,1711926637118,-500.0,0.00055342,120]
[321168926,1711926637127,-974.24,0.00055342,120]
[321168927,1711926637137,-500.0,0.00055342,120]
[321168928,1711926637146,-500.0,0.00055342,120]
[321168929,1711926637155,-1687.4,0.00055342,120]
[321168930,1711926637164,-500.0,0.00055342,120]
[321168931,1711926637172,-500.0,0.00055342,120]
[321168932,1711926637182,-612.09109136,0.00055342,120]